fUSD/lending_fUSD_20240727
["ID","MTS","AMOUNT","RATE_DAILY","PERIOD"]
[333307505,1722048651078,-154.46461957,0.00010999,2]
[333307506,1722048651088,-1196.46,0.00010999,2]
[333307507,1722048651097,-1196.46,0.00010999,2]
[333307508,1722048651106,-1196.46,0.00010999,2]
[333307509,1722048651116,-1196.46,0.00010999,2]
[333307510,1722048651125,-1196.46,0.00010999,2]
[333307511,1722048651134,-1196.46,0.00010999,2]
[333307512,1722048651144,-1196.46,0.00010999,2]
[333307513,1722048651153,-1196.46,0.00010999,2]
[333307514,1722048651162,-1196.46,0.00010999,2]
[333307515,1722048651172,-1196.46,0.00010999,2]
[333307516,1722048651181,-1196.46,0.00010999,2]
[333307517,1722048651190,-1196.46,0.00010999,2]
[333307518,1722048651200,-1196.46,0.00010999,2]
[333307519,1722048651209,-1196.46,0.00010999,2]
[333307520,1722048651221,-1196.46,0.00010999,2]
[333307521,1722048651231,-1196.46,0.00010999,2]
[333307522,1722048651240,-1196.46,0.00010999,2]
[333307523,1722048651250,-1196.46,0.00010999,2]
[333307524,1722048651260,-1196.46,0.00010999,2]
[333307525,1722048651270,-1196.46,0.00010999,2]
[333307526,1722048651280,-1196.68602159,0.00010999,2]
[333307527,1722048651290,-500.0,0.00010999,2]
[333307528,1722048651300,-500.0,0.00010999,2]
[333307529,1722048651310,-500.0,0.00010999,2]
[333307530,1722048651320,-500.0,0.00010999,2]
[333307531,1722048651329,-500.0,0.00010999,2]
[333307532,1722048651338,-500.0,0.00010999,2]
[333307533,1722048651347,-500.0,0.00010999,2]
[333307534,1722048651357,-500.0,0.00010999,2]
[333307535,1722048651366,-500.0,0.00010999,2]
[333307536,1722048651376,-500.0,0.00010999,2]
[333307537,1722048651385,-500.0,0.00010999,2]
[333307538,1722048651395,-530.55707435,0.00010999,2]
[333307539,1722048651404,-515.35785595,0.00010999,2]
[333307540,1722048651413,-500.0,0.00010999,2]
[333307541,1722048651423,-500.0,0.00010999,2]
[333307542,1722048651432,-500.0,0.00010999,2]
[333307543,1722048651441,-500.0,0.00010999,2]
[333307544,1722048651451,-500.0,0.00010999,2]
[333307545,1722048651461,-401.48,0.00010999,2]
[333307546,1722048651471,-500.0,0.00010999,2]
[333307547,1722048651481,-500.0,0.00010999,2]
[333307548,1722048651490,-500.0,0.00010999,2]
[333307549,1722048651500,-500.0,0.00010999,2]
[333307550,1722048651509,-500.0,0.00010999,2]
[333307551,1722048651519,-500.0,0.00010999,2]
[333307552,1722048651529,-500.0,0.00010999,2]
[333307553,1722048651539,-500.0,0.00010999,2]
[333307554,1722048651549,-500.0,0.00010999,2]
[333307555,1722048651558,-500.0,0.00010999,2]
[333307556,1722048651568,-500.0,0.00010999,2]
[333307557,1722048651577,-500.0,0.00010999,2]
[333307558,1722048651587,-500.0,0.00010999,2]
[333307559,1722048651596,-500.0,0.00010999,2]
[333307560,1722048651605,-500.0,0.00010999,2]
[333307561,1722048651615,-500.0,0.00010999,2]
[333307562,1722048651624,-500.0,0.00010999,2]
[333307563,1722048651633,-500.0,0.00010999,2]
[333307564,1722048651642,-500.0,0.00010999,2]
[333307565,1722048651651,-546.08763082,0.00010999,2]
[333307566,1722048651661,-500.0,0.00010999,2]
[333307567,1722048651670,-500.0,0.00010999,2]
[333307568,1722048651679,-500.0,0.00010999,2]
[333307569,1722048651689,-472.48290662,0.00010999,2]
[333307570,1722048651699,-682.0,0.00011,2]
[333307571,1722048651708,-185144.43295988,0.00011,2]
[333307572,1722048651718,-52613.19185857,0.00011,2]
[333307573,1722048651773,-6820.37072697,0.00011,2]
[333307578,1722048973462,5330.00977,0.000185,90]
[333307618,1722049831820,-170.87,7.524e-05,2]
[333307619,1722049831830,-167.98,8.219e-05,2]
[333307620,1722049831839,-245.74550704,8.228e-05,2]
[333307621,1722049831851,-242.25449296,8.228e-05,2]
[333307622,1722049831861,-245.15,8.229e-05,2]
[333307623,1722049831871,-133.92095045,9.099e-05,2]
[333307624,1722049831882,-116.07904955,9.099e-05,2]
[333307625,1722049831893,-922.36828087,9.099e-05,2]
[333307626,1722049831905,-400.93171913,9.099e-05,2]
[333307627,1722049831914,-150.0,9.887e-05,2]
[333307628,1722049831924,-300.0,9.887e-05,2]
[333307629,1722049831934,-36.05828087,9.888e-05,2]
[333307630,1722049832180,-829.21725701,9.888e-05,2]
[333307631,1722049832189,-307.49259192,9.888e-05,2]
[333307632,1722049832199,-150.0,9.888e-05,2]
[333307633,1722049832210,-150.0,9.888e-05,2]
[333307634,1722049832219,-383.89317337,9.888e-05,2]
[333307635,1722049832229,-150.0,9.888e-05,2]
[333307636,1722049832238,-150.0,9.888e-05,2]
[333307637,1722049832247,-150.0,9.888e-05,2]
[333307638,1722049832257,-150.0,9.888e-05,2]
[333307639,1722049832266,-150.0,9.888e-05,2]
[333307640,1722049832276,-150.0,9.888e-05,2]
[333307641,1722049832285,-298.88757069,9.888e-05,2]
[333307642,1722049832295,-150.0,9.888e-05,2]
[333307643,1722049832304,-150.0,9.888e-05,2]
[333307645,1722049832313,-150.0,9.888e-05,2]
[333307646,1722049832322,-150.0,9.888e-05,2]
[333307648,1722049832331,-865.27553788,9.899e-05,2]
[333307650,1722049832340,-307.49259192,9.899e-05,2]
[333307651,1722049832349,-383.89317337,9.899e-05,2]
[333307652,1722049832358,-150.0,9.903e-05,2]
[333307653,1722049832368,-865.27553788,9.91e-05,2]
[333307654,1722049832376,-307.49259192,9.91e-05,2]
[333307655,1722049832385,-383.89317337,9.91e-05,2]
[333307656,1722049832394,-150.0,9.913e-05,2]
[333307657,1722049832403,-150.0,9.919e-05,2]
[333307658,1722049832412,-865.27553788,9.921e-05,2]
[333307659,1722049832422,-307.49259192,9.921e-05,2]
[333307660,1722049832431,-383.89317337,9.921e-05,2]
[333307661,1722049832439,-150.0,9.93e-05,2]
[333307662,1722049832448,-865.27553788,9.932e-05,2]
[333307663,1722049832459,-307.49259192,9.932e-05,2]
[333307664,1722049832469,-383.89317337,9.932e-05,2]
[333307665,1722049832478,-150.0,9.935e-05,2]
[333307666,1722049832487,-150.0,9.939e-05,2]
[333307667,1722049832497,-865.27553788,9.943e-05,2]
[333307668,1722049832506,-307.49259192,9.943e-05,2]
[333307669,1722049832515,-383.89317337,9.943e-05,2]
[333307670,1722049832525,-92.31289116,9.945e-05,2]
[333307671,1722049832537,-57.68710884,9.945e-05,2]
[333307672,1722049832546,-150.0,9.95e-05,2]
[333307673,1722049832555,-395.82089118,9.954e-05,2]
[333307674,1722049832567,-469.4546467,9.954e-05,2]
[333307675,1722049832576,-307.49259192,9.954e-05,2]
[333307676,1722049832585,-383.89317337,9.954e-05,2]
[333307677,1722049832595,-150.0,9.964e-05,2]
[333307678,1722049832605,-865.27553788,9.965e-05,2]
[333307679,1722049832614,-307.49259192,9.965e-05,2]
[333307680,1722049832623,-383.89317337,9.965e-05,2]
[333307681,1722049832633,-150.0,9.966e-05,2]
[333307682,1722049832642,-150.0,9.972e-05,2]
[333307683,1722049832651,-865.27553788,9.976e-05,2]
[333307684,1722049832661,-307.49259192,9.976e-05,2]
[333307685,1722049832673,-383.89317337,9.976e-05,2]
[333307686,1722049832682,-150.0,9.982e-05,2]
[333307687,1722049832692,-865.27553788,9.988e-05,2]
[333307688,1722049832703,-307.49259192,9.988e-05,2]
[333307689,1722049832712,-383.89317337,9.988e-05,2]
[333307690,1722049832721,-150.0,9.988e-05,2]
[333307691,1722049832730,-150.0,9.99e-05,2]
[333307692,1722049832739,-150.0,9.998e-05,2]
[333307693,1722049832749,-865.27553788,9.999e-05,2]
[333307694,1722049832758,-307.49259192,9.999e-05,2]
[333307695,1722049832767,-383.89317337,9.999e-05,2]
[333307696,1722049832776,-150.0,0.00010003,2]
[333307697,1722049832785,-865.27553788,0.0001001,2]
[333307698,1722049832795,-307.49259192,0.0001001,2]
[333307699,1722049832804,-383.89317337,0.0001001,2]
[333307700,1722049832818,-150.0,0.00010013,2]
[333307701,1722049832827,-150.0,0.00010014,2]
[333307702,1722049832837,-150.0,0.00010015,2]
[333307703,1722049832846,-865.27553788,0.00010021,2]
[333307704,1722049832856,-307.49259192,0.00010021,2]
[333307705,1722049832865,-383.89317337,0.00010021,2]
[333307706,1722049832874,-150.0,0.00010029,2]
[333307707,1722049832884,-865.27553788,0.00010032,2]
[333307708,1722049832894,-307.49259192,0.00010032,2]
[333307709,1722049832903,-383.89317337,0.00010032,2]
[333307710,1722049832913,-150.0,0.00010041,2]
[333307711,1722049832922,-865.27553788,0.00010043,2]
[333307712,1722049832931,-307.49259192,0.00010043,2]
[333307713,1722049832940,-383.89317337,0.00010043,2]
[333307714,1722049832949,-150.0,0.00010045,2]
[333307715,1722049832960,-865.27553788,0.00010054,2]
[333307716,1722049832969,-54.73208061,0.00010054,2]
[333307718,1722049837787,-252.76051131,0.00010054,2]
[333307719,1722049837798,-383.89317337,0.00010054,2]
[333307720,1722049837808,-150.0,0.00010057,2]
[333307721,1722049837821,-150.0,0.0001006,2]
[333307722,1722049837830,-150.0,0.00010061,2]
[333307723,1722049837841,-865.27553788,0.00010065,2]
[333307724,1722049837852,-307.49259192,0.00010065,2]
[333307725,1722049837862,-383.89317337,0.00010065,2]
[333307726,1722049837873,-150.0,0.00010067,2]
[333307727,1722049837883,-150.0,0.00010071,2]
[333307728,1722049837895,-150.0,0.00010076,2]
[333307729,1722049837904,-865.27553788,0.00010076,2]
[333307730,1722049837913,-307.49259192,0.00010076,2]
[333307731,1722049837923,-383.89317337,0.00010076,2]
[333307732,1722049837933,-865.27553788,0.00010087,2]
[333307733,1722049837944,-307.49259192,0.00010087,2]
[333307734,1722049837953,-383.89317337,0.00010087,2]
[333307735,1722049837962,-150.0,0.00010087,2]
[333307736,1722049837973,-150.0,0.00010092,2]
[333307737,1722049837986,-150.0,0.00010092,2]
[333307738,1722049837997,-865.27553788,0.00010099,2]
[333307739,1722049838007,-307.49259192,0.00010099,2]
[333307740,1722049838017,-383.89317337,0.00010099,2]
[333307741,1722049838026,-150.0,0.00010099,2]
[333307742,1722049838036,-150.0,0.00010107,2]
[333307743,1722049838045,-150.0,0.00010107,2]
[333307744,1722049838054,-150.0,0.00010107,2]
[333307745,1722049838063,-865.27553788,0.0001011,2]
[333307746,1722049838073,-307.49259192,0.0001011,2]
[333307747,1722049838083,-383.89317337,0.0001011,2]
[333307748,1722049838092,-150.0,0.00010118,2]
[333307749,1722049838102,-150.0,0.00010119,2]
[333307750,1722049838111,-865.27553788,0.00010121,2]
[333307751,1722049838120,-307.49259192,0.00010121,2]
[333307752,1722049838129,-383.89317337,0.00010121,2]
[333307753,1722049838138,-150.0,0.00010123,2]
[333307754,1722049838147,-1000.0,0.00010132,2]
[333307755,1722049838156,-865.27553788,0.00010132,2]
[333307756,1722049838166,-307.49259192,0.00010132,2]
[333307757,1722049838175,-383.89317337,0.00010132,2]
[333307758,1722049838184,-150.0,0.00010139,2]
[333307759,1722049838194,-150.0,0.00010141,2]
[333307760,1722049838203,-865.27553788,0.00010143,2]
[333307761,1722049838212,-307.49259192,0.00010143,2]
[333307762,1722049838222,-383.89317337,0.00010143,2]
[333307763,1722049838231,-150.0,0.00010143,2]
[333307764,1722049838240,-865.27553788,0.00010154,2]
[333307765,1722049838250,-307.49259192,0.00010154,2]
[333307766,1722049838258,-383.89317337,0.00010154,2]
[333307767,1722049838268,-150.0,0.00010154,2]
[333307768,1722049838278,-150.0,0.00010162,2]
[333307769,1722049838287,-150.0,0.00010162,2]
[333307770,1722049838296,-865.27553788,0.00010165,2]
[333307771,1722049838305,-307.49259192,0.00010165,2]
[333307772,1722049838314,-383.89317337,0.00010165,2]
[333307773,1722049838324,-150.0,0.00010169,2]
[333307774,1722049838333,-150.0,0.0001017,2]
[333307775,1722049838343,-865.27553788,0.00010176,2]
[333307776,1722049838352,-307.49259192,0.00010176,2]
[333307777,1722049838361,-383.89317337,0.00010176,2]
[333307778,1722049838370,-150.0,0.00010177,2]
[333307779,1722049838380,-150.0,0.00010183,2]
[333307780,1722049838389,-150.0,0.00010186,2]
[333307781,1722049838399,-865.27553788,0.00010187,2]
[333307782,1722049838408,-307.49259192,0.00010187,2]
[333307783,1722049838417,-383.89317337,0.00010187,2]
[333307784,1722049838426,-150.0,0.00010187,2]
[333307785,1722049838435,-150.0,0.00010194,2]
[333307786,1722049838445,-865.27553788,0.00010198,2]
[333307787,1722049838455,-157.94772283,0.00010198,2]
[333307788,1722049838467,-149.54486909,0.00010198,2]
[333307789,1722049838476,-383.89317337,0.00010198,2]
[333307790,1722049838486,-150.0,0.00010202,2]
[333307791,1722049838495,-454.74268073,0.00010209,2]
[333307792,1722049838506,-410.53285715,0.00010209,2]
[333307793,1722049838515,-307.49259192,0.00010209,2]
[333307794,1722049838525,-383.89317337,0.00010209,2]
[333307795,1722049838534,-150.0,0.00010217,2]
[333307796,1722049838543,-150.0,0.0001022,2]
[333307797,1722049838552,-865.27553788,0.00010221,2]
[333307798,1722049838561,-307.49259192,0.00010221,2]
[333307799,1722049838571,-383.89317337,0.00010221,2]
[333307800,1722049838579,-150.0,0.00010226,2]
[333307801,1722049838590,-865.27553788,0.00010232,2]
[333307802,1722049838599,-307.49259192,0.00010232,2]
[333307803,1722049838609,-383.89317337,0.00010232,2]
[333307804,1722049838618,-150.0,0.00010233,2]
[333307805,1722049838627,-150.0,0.00010235,2]
[333307806,1722049838636,-865.27553788,0.00010243,2]
[333307807,1722049838646,-307.49259192,0.00010243,2]
[333307808,1722049838655,-383.89317337,0.00010243,2]
[333307809,1722049838665,-150.0,0.00010245,2]
[333307810,1722049838674,-150.0,0.00010249,2]
[333307811,1722049838683,-865.27553788,0.00010254,2]
[333307812,1722049838692,-307.49259192,0.00010254,2]
[333307813,1722049838701,-383.89317337,0.00010254,2]
[333307814,1722049838711,-150.0,0.00010254,2]
[333307815,1722049838720,-150.0,0.00010264,2]
[333307816,1722049838730,-865.27553788,0.00010265,2]
[333307817,1722049838739,-307.49259192,0.00010265,2]
[333307818,1722049838749,-383.89317337,0.00010265,2]
[333307819,1722049838758,-150.0,0.00010268,2]
[333307820,1722049838767,-150.0,0.00010271,2]
[333307821,1722049838776,-865.27553788,0.00010276,2]
[333307822,1722049838785,-307.49259192,0.00010276,2]
[333307823,1722049838794,-383.89317337,0.00010276,2]
[333307824,1722049838803,-150.0,0.0001028,2]
[333307825,1722049838815,-865.27553788,0.00010287,2]
[333307826,1722049838824,-307.49259192,0.00010287,2]
[333307827,1722049838834,-383.89317337,0.00010287,2]
[333307828,1722049838843,-150.0,0.00010287,2]
[333307829,1722049838852,-150.0,0.00010292,2]
[333307830,1722049838861,-150.0,0.00010296,2]
[333307831,1722049838870,-150.0,0.00010296,2]
[333307832,1722049838879,-865.27553788,0.00010298,2]
[333307833,1722049838889,-307.49259192,0.00010298,2]
[333307834,1722049838899,-383.89317337,0.00010298,2]
[333307835,1722049838908,-865.27553788,0.00010309,2]
[333307836,1722049838917,-307.49259192,0.00010309,2]
[333307837,1722049838926,-383.89317337,0.00010309,2]
[333307838,1722049838935,-150.0,0.0001031,2]
[333307839,1722049838944,-150.0,0.00010311,2]
[333307840,1722049838953,-865.27553788,0.0001032,2]
[333307841,1722049838963,-307.49259192,0.0001032,2]
[333307842,1722049838972,-383.89317337,0.0001032,2]
[333307843,1722049838981,-150.0,0.00010322,2]
[333307844,1722049838990,-150.0,0.00010327,2]
[333307845,1722049839000,-150.0,0.00010327,2]
[333307846,1722049839009,-150.0,0.00010327,2]
[333307847,1722049839018,-865.27553788,0.00010332,2]
[333307848,1722049839027,-307.49259192,0.00010332,2]
[333307849,1722049839036,-383.89317337,0.00010332,2]
[333307850,1722049839046,-865.27553788,0.00010343,2]
[333307851,1722049839055,-307.49259192,0.00010343,2]
[333307852,1722049839065,-383.89317337,0.00010343,2]
[333307853,1722049839075,-150.0,0.00010343,2]
[333307854,1722049839084,-150.0,0.00010348,2]
[333307855,1722049839094,-150.0,0.0001035,2]
[333307856,1722049839103,-150.0,0.00010352,2]
[333307857,1722049839113,-865.27553788,0.00010354,2]
[333307858,1722049839122,-307.49259192,0.00010354,2]
[333307859,1722049839131,-383.89317337,0.00010354,2]
[333307860,1722049839140,-150.0,0.00010359,2]
[333307861,1722049839149,-865.27553788,0.00010365,2]
[333307862,1722049839159,-307.49259192,0.00010365,2]
[333307863,1722049839168,-383.89317337,0.00010365,2]
[333307864,1722049839178,-150.0,0.00010373,2]
[333307865,1722049839187,-150.0,0.00010374,2]
[333307866,1722049839196,-865.27553788,0.00010376,2]
[333307867,1722049839206,-307.49259192,0.00010376,2]
[333307868,1722049839215,-383.89317337,0.00010376,2]
[333307869,1722049839224,-865.27553788,0.00010387,2]
[333307870,1722049839232,-307.49259192,0.00010387,2]
[333307871,1722049839242,-383.89317337,0.00010387,2]
[333307872,1722049839251,-150.0,0.00010387,2]
[333307873,1722049839260,-150.0,0.0001039,2]
[333307874,1722049839269,-150.0,0.00010395,2]
[333307875,1722049839278,-865.27553788,0.00010398,2]
[333307876,1722049839287,-307.49259192,0.00010398,2]
[333307877,1722049839296,-383.89317337,0.00010398,2]
[333307878,1722049839306,-150.0,0.00010399,2]
[333307879,1722049839316,-150.0,0.00010406,2]
[333307880,1722049839325,-150.0,0.00010408,2]
[333307881,1722049839334,-865.27553788,0.00010409,2]
[333307882,1722049839343,-307.49259192,0.00010409,2]
[333307883,1722049839353,-383.89317337,0.00010409,2]
[333307884,1722049839362,-865.27553788,0.0001042,2]
[333307885,1722049839371,-307.49259192,0.0001042,2]
[333307887,1722049839380,-383.89317337,0.0001042,2]
[333307888,1722049839390,-150.0,0.00010421,2]
[333307890,1722049839403,-150.0,0.00010424,2]
[333307891,1722049839414,-865.27553788,0.00010431,2]
[333307892,1722049839426,-307.49259192,0.00010431,2]
[333307893,1722049839438,-383.89317337,0.00010431,2]
[333307894,1722049839450,-150.0,0.00010437,2]
[333307895,1722049839462,-150.0,0.00010437,2]
[333307896,1722049839475,-150.0,0.00010437,2]
[333307897,1722049839486,-150.0,0.00010437,2]
[333307898,1722049839497,-150.0,0.00010437,2]
[333307899,1722049839509,-865.27553788,0.00010443,2]
[333307901,1722049839521,-307.49259192,0.00010443,2]
[333307903,1722049839532,-383.89317337,0.00010443,2]
[333307904,1722049839543,-150.0,0.0001045,2]
[333307905,1722049839556,-150.0,0.00010453,2]
[333307906,1722049839569,-865.27553788,0.00010454,2]
[333307907,1722049839581,-307.49259192,0.00010454,2]
[333307908,1722049839594,-383.89317337,0.00010454,2]
[333307909,1722049839607,-865.27553788,0.00010465,2]
[333307910,1722049839620,-307.49259192,0.00010465,2]
[333307911,1722049839633,-383.89317337,0.00010465,2]
[333307912,1722049839644,-150.0,0.00010466,2]
[333307913,1722049839655,-150.0,0.00010468,2]
[333307914,1722049839668,-150.0,0.00010475,2]
[333307915,1722049839681,-865.27553788,0.00010476,2]
[333307916,1722049839692,-307.49259192,0.00010476,2]
[333307917,1722049839703,-383.89317337,0.00010476,2]
[333307918,1722049839715,-150.0,0.00010479,2]
[333307919,1722049839727,-150.0,0.00010484,2]
[333307921,1722049839737,-865.27553788,0.00010487,2]
[333307923,1722049839747,-307.49259192,0.00010487,2]
[333307925,1722049839758,-383.89317337,0.00010487,2]
[333307926,1722049839769,-150.0,0.00010487,2]
[333307927,1722049839779,-245.15,0.00010493,2]
[333307928,1722049839791,-865.27553788,0.00010498,2]
[333307929,1722049839800,-307.49259192,0.00010498,2]
[333307930,1722049839814,-383.89317337,0.00010498,2]
[333307933,1722049839825,-150.0,0.000105,2]
[333307934,1722049839835,-150.0,0.00010501,2]
[333307935,1722049839845,-865.27553788,0.00010509,2]
[333307936,1722049839857,-307.49259192,0.00010509,2]
[333307937,1722049839868,-383.89317337,0.00010509,2]
[333307938,1722049839879,-150.0,0.00010515,2]
[333307939,1722049839890,-865.27553788,0.0001052,2]
[333307940,1722049839901,-307.49259192,0.0001052,2]
[333307941,1722049839913,-383.89317337,0.0001052,2]
[333307942,1722049839924,-150.0,0.00010521,2]
[333307943,1722049839935,-150.0,0.00010524,2]
[333307944,1722049839947,-150.0,0.00010526,2]
[333307945,1722049839957,-150.0,0.00010531,2]
[333307946,1722049839967,-865.27553788,0.00010531,2]
[333307947,1722049839978,-307.49259192,0.00010531,2]
[333307948,1722049839990,-383.89317337,0.00010531,2]
[333307949,1722049840002,-865.27553788,0.00010542,2]
[333307950,1722049840013,-307.49259192,0.00010542,2]
[333307951,1722049840024,-383.89317337,0.00010542,2]
[333307952,1722049840035,-150.0,0.00010547,2]
[333307953,1722049840045,-150.0,0.00010547,2]
[333307954,1722049840055,-150.0,0.00010547,2]
[333307955,1722049840065,-150.0,0.00010552,2]
[333307956,1722049840074,-865.27553788,0.00010554,2]
[333307957,1722049840084,-307.49259192,0.00010554,2]
[333307958,1722049840093,-383.89317337,0.00010554,2]
[333307959,1722049840103,-150.0,0.00010563,2]
[333307960,1722049840112,-150.0,0.00010564,2]
[333307961,1722049840123,-865.27553788,0.00010565,2]
[333307962,1722049840134,-307.49259192,0.00010565,2]
[333307963,1722049840145,-383.89317337,0.00010565,2]
[333307964,1722049840156,-865.27553788,0.00010576,2]
[333307965,1722049840167,-307.49259192,0.00010576,2]
[333307966,1722049840178,-383.89317337,0.00010576,2]
[333307967,1722049840189,-150.0,0.00010578,2]
[333307968,1722049840199,-150.0,0.00010578,2]
[333307969,1722049840210,-150.0,0.00010582,2]
[333307970,1722049840221,-865.27553788,0.00010587,2]
[333307971,1722049840231,-307.49259192,0.00010587,2]
[333307972,1722049840242,-383.89317337,0.00010587,2]
[333307973,1722049840253,-150.0,0.00010587,2]
[333307974,1722049840264,-150.0,0.00010594,2]
[333307975,1722049840276,-865.27553788,0.00010598,2]
[333307976,1722049840285,-307.49259192,0.00010598,2]
[333307977,1722049840295,-383.89317337,0.00010598,2]
[333307978,1722049840305,-150.0,0.00010603,2]
[333307979,1722049840315,-150.0,0.00010606,2]
[333307980,1722049840325,-865.27553788,0.00010609,2]
[333307981,1722049840336,-307.49259192,0.00010609,2]
[333307982,1722049840346,-383.89317337,0.00010609,2]
[333307983,1722049840356,-150.0,0.0001061,2]
[333307984,1722049840367,-865.27553788,0.0001062,2]
[333307985,1722049840377,-307.49259192,0.0001062,2]
[333307986,1722049840387,-383.89317337,0.0001062,2]
[333307987,1722049840398,-150.0,0.0001062,2]
[333307988,1722049840408,-150.0,0.00010625,2]
[333307990,1722049840422,-150.0,0.00010629,2]
[333307991,1722049840432,-865.27553788,0.00010631,2]
[333307993,1722049840443,-307.49259192,0.00010631,2]
[333307995,1722049840453,-383.89317337,0.00010631,2]
[333307996,1722049840467,-150.0,0.00010639,2]
[333307997,1722049840478,-150.0,0.00010641,2]
[333307998,1722049840488,-865.27553788,0.00010642,2]
[333307999,1722049840498,-307.49259192,0.00010642,2]
[333308000,1722049840509,-383.89317337,0.00010642,2]
[333308001,1722049840520,-150.0,0.00010648,2]
[333308002,1722049840531,-865.27553788,0.00010653,2]
[333308003,1722049840541,-307.49259192,0.00010653,2]
[333308004,1722049840551,-383.89317337,0.00010653,2]
[333308005,1722049840562,-150.0,0.00010654,2]
[333308006,1722049840572,-150.0,0.00010657,2]
[333308007,1722049840583,-865.27553788,0.00010664,2]
[333308008,1722049840593,-307.49259192,0.00010664,2]
[333308009,1722049840604,-383.89317337,0.00010664,2]
[333308010,1722049840614,-150.0,0.00010672,2]
[333308011,1722049840624,-865.27553788,0.00010676,2]
[333308012,1722049840635,-307.49259192,0.00010676,2]
[333308013,1722049840645,-383.89317337,0.00010676,2]
[333308014,1722049840655,-150.0,0.0001068,2]
[333308015,1722049840666,-865.27553788,0.00010687,2]
[333308016,1722049840676,-307.49259192,0.00010687,2]
[333308017,1722049840687,-383.89317337,0.00010687,2]
[333308018,1722049840698,-150.0,0.00010687,2]
[333308019,1722049840710,-150.0,0.00010688,2]
[333308020,1722049840720,-150.0,0.00010691,2]
[333308021,1722049840731,-150.0,0.00010697,2]
[333308022,1722049840741,-865.27553788,0.00010698,2]
[333308023,1722049840753,-307.49259192,0.00010698,2]
[333308024,1722049840764,-383.89317337,0.00010698,2]
[333308025,1722049840774,-150.0,0.00010704,2]
[333308026,1722049840784,-150.0,0.00010705,2]
[333308027,1722049840794,-865.27553788,0.00010709,2]
[333308028,1722049840805,-307.49259192,0.00010709,2]
[333308029,1722049840820,-383.89317337,0.00010709,2]
[333308030,1722049840830,-150.0,0.00010712,2]
[333308031,1722049840840,-150.0,0.00010712,2]
[333308032,1722049840851,-150.0,0.00010719,2]
[333308033,1722049840862,-865.27553788,0.0001072,2]
[333308034,1722049840874,-307.49259192,0.0001072,2]
[333308035,1722049840885,-383.89317337,0.0001072,2]
[333308036,1722049840898,-150.0,0.00010731,2]
[333308037,1722049840909,-865.27553788,0.00010731,2]
[333308038,1722049840921,-307.49259192,0.00010731,2]
[333308039,1722049840932,-383.89317337,0.00010731,2]
[333308040,1722049840942,-150.0,0.00010733,2]
[333308041,1722049840953,-150.0,0.00010735,2]
[333308042,1722049840966,-865.27553788,0.00010742,2]
[333308043,1722049840976,-307.49259192,0.00010742,2]
[333308044,1722049840987,-383.89317337,0.00010742,2]
[333308045,1722049840998,-150.0,0.00010751,2]
[333308046,1722049841009,-865.27553788,0.00010753,2]
[333308047,1722049841020,-307.49259192,0.00010753,2]
[333308048,1722049841031,-383.89317337,0.00010753,2]
[333308049,1722049841042,-150.0,0.00010755,2]
[333308050,1722049841052,-150.0,0.00010756,2]
[333308051,1722049841063,-865.27553788,0.00010764,2]
[333308052,1722049841073,-307.49259192,0.00010764,2]
[333308053,1722049841084,-383.89317337,0.00010764,2]
[333308054,1722049841094,-150.0,0.00010767,2]
[333308055,1722049841104,-150.0,0.00010767,2]
[333308056,1722049841114,-150.0,0.00010767,2]
[333308057,1722049841125,-150.0,0.00010775,2]
[333308058,1722049841135,-865.27553788,0.00010775,2]
[333308059,1722049841145,-307.49259192,0.00010775,2]
[333308060,1722049841156,-383.89317337,0.00010775,2]
[333308061,1722049841166,-5218.0,0.00010781,2]
[333308062,1722049841176,-150.0,0.00010782,2]
[333308063,1722049841186,-150.0,0.00010782,2]